bitfinex-derivatives/quotes_ETHF0:USTF0_20250213
["timestamp","ask_amount","ask_price","bid_price","bid_amount"]
[1739404801578,0.00547885,2740.1,2740.0,3.2078]
[1739404801774,0.00547885,2740.1,2740.0,9.2078]
[1739404805384,0.45397885,2741.1,2740.0,3.2078]
[1739404805584,0.45397885,2741.1,2740.6,3.656]
[1739404806479,0.45397885,2741.1,2740.9,3.656]
[1739404806685,0.45750767,2741.1,2740.9,3.656]
[1739404807388,0.00352882,2741.1,2740.9,3.656]
[1739404807585,0.00352882,2741.1,2741.0,4.4085]
[1739404808295,0.00352882,2741.1,2741.0,5.1539]
[1739404808788,3.2078,2742.1,2741.0,10.0879]
[1739404808989,0.7869,2742.0,2741.6,3.656]
[1739404809887,1.5623,2742.0,2741.6,3.656]
[1739404810590,0.7869,2742.0,2741.6,3.656]
[1739404812292,0.7869,2742.0,2741.5,3.21327885]
[1739404813194,0.7869,2742.0,2741.5,0.00547885]
[1739404813993,0.7784,2741.9,2741.5,0.00547885]
[1739404814788,5.0538,2742.1,2741.5,3.21327885]
[1739404814983,5.0538,2742.1,2741.6,0.7345]
[1739404815387,0.7947,2742.0,2741.6,0.7345]
[1739404815593,1.5731,2742.0,2741.5,0.00547885]
[1739404816890,0.7381,2741.9,2741.5,0.00547885]
[1739404817486,3.2078,2742.4,2741.7,3.2078]
[1739404817693,2.2235,2742.8,2742.1,3.2078]
[1739404817892,4.0695,2742.8,2742.2,0.7586]
[1739404818094,3.3303,2742.8,2742.2,0.7586]
[1739404818298,2.5841,2742.8,2742.5,3.2078]
[1739404820686,0.7381,2742.8,2742.5,3.2078]
[1739404820893,5.0528,2743.5,2742.5,3.2078]
[1739404821100,1.845,2743.5,2743.0,3.2078]
[1739404821298,0.7658,2743.7,2743.0,3.2078]
[1739404821497,0.7658,2743.7,2743.1,0.7617]
[1739404821799,0.7658,2743.7,2743.1,1.5552]
[1739404822196,0.6588,2743.7,2743.3,3.2078]
[1739404822797,3.2078,2743.6,2743.1,0.7617]
[1739404823004,3.2078,2743.6,2743.0,0.00546876]
[1739404823005,3.2078,2743.2,2743.0,0.00546876]
[1739404824694,9.2078,2743.2,2741.6,3.2078]
[1739404824897,3.2078,2742.4,2741.6,3.2078]
[1739404825100,1.844,2742.3,2741.6,3.2078]
[1739404825297,3.2078,2742.8,2741.9,3.2078]
[1739404825605,19.106,2743.4,2742.7,3.13969857]
[1739404825606,3.2078,2743.1,2742.7,3.13969857]
[1739404825799,3.2078,2743.4,2742.7,6.34749857]
[1739404826102,3.2078,2743.1,2742.4,6.34749857]
[1739404826299,5.0518,2743.1,2742.4,6.34749857]
[1739404826505,5.0518,2743.1,2742.2,0.7844]
[1739404826506,0.00543513,2743.3,2742.7,6.34749857]
[1739404826903,0.00543513,2743.3,2742.8,0.7844]
[1739404827202,0.00543513,2743.3,2743.0,3.13969857]
[1739404827502,0.00543513,2743.3,2743.1,3.2078]
[1739404827702,0.00543513,2743.3,2742.8,0.7844]
[1739404828004,0.00543513,2743.3,2743.1,3.2078]
[1739404829707,0.00543513,2743.3,2742.8,0.7844]
[1739404830007,3.2078,2743.2,2742.4,8.07369857]
[1739404830202,3.2078,2743.2,2742.5,0.7669]
[1739404831207,3.2078,2743.2,2742.9,0.72904]
[1739404831407,3.2078,2743.2,2742.5,0.7669]
[1739404831597,3.2078,2743.2,2742.8,0.72906]
[1739404831804,3.2078,2743.2,2742.9,0.72904]
[1739404832009,3.21148267,2743.2,2742.8,0.72906]
[1739404832205,3.21148267,2743.2,2742.5,0.7669]
[1739404832415,3.2078,2742.9,2742.2,0.792]
[1739404832610,3.3814,2742.8,2742.6,0.72911]
[1739404832914,3.3814,2742.8,2742.2,0.792]
[1739404832915,3.3814,2742.8,2742.5,0.72914]
[1739404833109,3.3814,2742.8,2742.2,0.792]
[1739404833413,1.5384,2742.8,2742.7,0.7291]
[1739404833610,3.3814,2742.8,2742.2,0.792]
[1739404834106,3.3814,2742.8,2742.4,0.72916]
[1739404834311,3.3814,2742.8,2742.5,0.72915]
[1739404834714,3.3814,2742.8,2742.6,0.72912]
[1739404834909,0.738,2742.8,2742.4,3.13969857]
[1739404835115,3.21148267,2743.2,2743.1,0.729]
[1739404835321,0.7292,2743.1,2742.8,0.72906]
[1739404835613,3.93686,2742.9,2742.1,7.09219857]
[1739404835813,3.93686,2742.9,2742.5,0.72913]
[1739404836012,3.2078,2742.9,2742.1,7.09219857]
[1739404836218,3.2078,2742.9,2742.7,0.72908]
[1739404836412,3.2078,2742.9,2742.2,1.82309]
[1739404836613,3.2078,2742.9,2742.6,0.72912]
[1739404836812,3.2078,2742.9,2742.1,3.88439857]
[1739404837013,3.2078,2742.3,2742.1,0.7447]
[1739404837213,0.743,2742.2,2741.8,0.7602]
[1739404837413,0.743,2742.2,2742.1,0.72926]
[1739404837619,1.843,2742.6,2742.1,3.13969857]
[1739404837815,1.843,2742.6,2742.5,0.72915]
[1739404839210,1.843,2742.6,2742.3,0.7764]
[1739404839410,1.843,2742.6,2742.5,0.72915]
[1739404839615,1.843,2742.6,2742.2,0.72921]
[1739404839616,2.57213,2742.6,2742.2,0.72921]
[1739404839820,2.57213,2742.6,2742.0,0.00546876]
[1739404839821,3.2078,2742.4,2742.0,0.00546876]
[1739404840127,3.93699,2742.4,2742.0,0.73472876]
[1739404840328,4.66859,2742.4,2742.0,0.73472876]
[1739404840529,4.66859,2742.4,2742.1,0.72926]
[1739404840728,3.9394,2742.4,2742.1,0.72926]
[1739404841226,9.9394,2742.4,2741.0,4.934]
[1739404841424,3.2078,2741.1,2739.4,1.59087356]
[1739404841630,3.2078,2739.7,2739.4,1.59087356]
[1739404841821,3.2078,2739.7,2739.1,3.13969857]
[1739404842024,3.2078,2739.7,2739.5,0.72995]
[1739404842225,3.2078,2739.7,2739.6,0.72993]
[1739404842428,0.00546876,2739.9,2739.3,0.00546876]
[1739404842632,1.84746876,2739.9,2739.8,0.72987]
[1739404843023,8.76e-06,2739.9,2739.8,0.72987]
[1739404843223,4.98170733,2739.9,2739.3,0.00546876]
[1739404843423,3.2078,2739.4,2739.3,0.00546876]
[1739404843624,5.0498,2739.4,2739.3,0.00546876]
[1739404847420,5.0508,2739.4,2739.3,0.00546876]
[1739404847727,3.2078,2739.4,2739.3,0.73547876]
[1739404847928,5.0508,2739.4,2739.3,0.00546876]
[1739404848227,3.2078,2739.4,2739.3,0.00546876]
[1739404848422,5.0508,2739.4,2739.3,0.00546876]
[1739404853032,5.78078,2739.4,2739.3,0.00546876]
[1739404854124,11.0508,2739.4,2738.3,4.934]
[1739404854330,11.0508,2739.4,2738.3,0.73027]
[1739404854331,3.2078,2738.4,2738.3,0.73027]
[1739404859529,3.2078,2738.4,2738.1,0.00546876]
[1739404859530,1.843,2738.6,2738.1,0.00546876]
[1739404859730,1.843,2738.6,2738.3,1.82569]
[1739404860036,5.05626876,2738.7,2738.6,0.73019]
[1739404861035,3.21326876,2738.7,2738.6,0.73019]
[1739404861229,0.00546876,2738.7,2738.6,0.73019]
[1739404861833,3.2078,2739.0,2738.6,0.73019]
[1739404862037,3.2078,2739.0,2738.9,0.73011]
[1739404862335,3.2078,2739.3,2738.9,0.73011]
[1739404862633,3.2078,2739.3,2738.7,0.7326]
[1739404862825,0.73002,2739.3,2739.1,0.73006]
[1739404863025,3.2078,2739.2,2738.7,0.7326]
[1739404863232,3.2078,2738.8,2738.7,1.46277]
[1739404863436,3.2078,2739.1,2739.0,0.73009]
[1739404864137,3.2078,2739.1,2738.9,0.7301]
[1739404864539,3.2078,2739.1,2738.5,4.934]
[1739404864738,3.2078,2738.6,2738.5,4.934]
[1739404864935,3.2078,2738.6,2738.5,5.66422]
[1739404866643,3.2078,2738.6,2738.5,0.73022]
[1739404867839,5.0508,2738.6,2738.5,0.73022]
[1739404869241,5.0508,2738.6,2738.3,0.73027]
[1739404869950,5.78101,2738.6,2738.2,0.73028]
[1739404870148,3.2078,2738.3,2738.1,0.73577876]
[1739404870339,0.7637,2738.2,2738.1,0.73577876]
[1739404870836,3.2078,2738.3,2738.2,0.7303]
[1739404871439,3.2078,2738.3,2738.1,0.00546876]
[1739404871440,0.7303,2738.2,2738.1,0.00546876]
[1739404871637,5.73405714,2738.2,2738.1,0.00546876]
[1739404871838,6.47425714,2738.2,2738.1,0.00546876]
[1739404872046,7.20455714,2738.2,2738.1,0.00546876]
[1739404872245,6.47425714,2738.2,2738.1,0.00546876]
[1739404872847,7.20455714,2738.2,2738.1,0.00546876]
[1739404875847,7.66297051,2738.2,2738.1,0.00546876]
[1739404876438,6.46165714,2738.2,2738.1,0.00546876]
[1739404877144,11.73135714,2738.2,2736.5,3.14815714]
[1739404877349,3.2078,2736.7,2736.6,2.3235]
[1739404877550,3.2078,2737.0,2736.9,0.73065]
[1739404877945,3.2078,2737.4,2737.3,0.73054]
[1739404878152,5.0498,2737.4,2737.3,0.73054]
[1739404878647,5.0498,2737.4,2736.8,8.08215714]
[1739404878648,5.0498,2737.4,2737.2,0.73056]
[1739404879153,5.0498,2737.4,2736.8,8.08215714]
[1739404879154,3.2078,2737.4,2737.3,0.73054]
[1739404879350,5.0498,2737.4,2737.3,0.73054]
[1739404880052,5.0498,2737.4,2737.1,0.73057]
[1739404880350,5.0498,2737.4,2736.8,8.08215714]
[1739404880351,5.0498,2737.4,2736.8,4.934]
[1739404880556,3.2078,2737.0,2736.9,0.73065]
[1739404882147,3.2078,2737.0,2736.8,4.934]
[1739404882347,3.2078,2737.0,2736.9,0.73065]
[1739404884155,3.2078,2737.0,2736.7,0.00547915]
[1739404884348,3.2078,2737.0,2736.9,0.73065]
[1739404886662,3.2078,2737.3,2737.2,0.73057]
[1739404886965,3.21327915,2737.6,2737.2,0.73057]
[1739404887165,3.21327915,2737.6,2737.5,0.73049]
[1739404888165,3.2078,2737.9,2737.8,0.73041]
[1739404888569,3.2078,2738.2,2738.1,0.73033]
[1739404889258,3.2078,2738.2,2737.9,0.7669]
[1739404889966,3.93811,2738.2,2737.9,1.49727]
[1739404890265,3.2078,2738.2,2737.9,1.49727]
[1739404890454,3.2078,2738.2,2737.9,0.7669]
[1739404890654,3.2078,2738.2,2738.0,0.73034]
[1739404890866,3.2078,2738.2,2737.9,0.7669]
[1739404891064,3.2078,2738.2,2738.1,0.73033]
[1739404895664,3.2078,2738.2,2737.9,0.7669]
[1739404895866,3.2078,2738.2,2738.1,0.73033]
[1739404896767,1.841,2738.3,2738.0,0.7426]
[1739404896966,1.841,2738.3,2738.2,0.7303]
[1739404897161,0.00546813,2738.4,2738.3,0.73027]
[1739404898263,0.00546813,2738.4,2738.2,0.73029]
[1739404898461,0.73526813,2738.4,2738.2,0.7303]
[1739404898872,0.73526813,2738.4,2738.2,0.73029]
[1739404899267,0.73526813,2738.4,2738.1,0.00547915]
[1739404899472,7.88712189,2738.2,2738.1,0.00547915]
[1739404899670,0.73033,2738.1,2737.8,0.73039]
[1739404899871,3.2078,2737.9,2737.8,0.73039]
[1739404900370,3.2078,2737.9,2737.5,0.7284]
[1739404900574,3.2078,2737.9,2736.9,1.5154]
[1739404900575,3.2078,2737.6,2736.9,3.34202]
[1739404900874,0.7298,2737.8,2737.1,0.73059]
[1739404900875,3.2078,2737.2,2737.1,0.73059]
[1739404901179,5.0488,2737.5,2737.4,0.73051]
[1739404902071,5.0488,2737.5,2737.0,0.73387915]
[1739404902278,5.0488,2737.5,2737.2,0.73055]
[1739404902577,5.0488,2737.5,2737.3,0.73053]
[1739404902875,5.0488,2737.5,2737.2,0.73056]
[1739404903077,5.0488,2737.5,2737.2,0.73054]
[1739404903279,5.0488,2737.5,2737.3,0.73053]
[1739404903588,5.0488,2737.5,2737.4,0.73051]
[1739404904979,3.2078,2737.5,2737.4,0.73051]
[1739404905172,0.7298,2737.8,2737.7,0.73043]
[1739404905173,3.2078,2737.8,2737.7,0.73043]
[1739404905874,0.73044,2737.7,2737.3,0.73052]
[1739404906077,3.2078,2737.4,2737.3,0.73052]
[1739404907270,3.2078,2737.4,2737.1,0.73058]
[1739404907470,6.35850977,2737.4,2737.0,0.00547915]
[1739404907776,3.2078,2737.1,2737.0,0.00547915]
[1739404908277,3.2078,2737.1,2737.0,0.73609915]
[1739404908872,3.2078,2737.1,2737.0,0.00547915]
[1739404910376,3.2078,2737.1,2737.0,0.73609915]
[1739404911097,3.2078,2737.1,2737.0,0.00547915]
[1739404911280,3.2078,2737.1,2737.0,0.73609915]
[1739404918475,3.2078,2737.1,2737.0,0.00547915]
[1739404918677,3.93839,2737.1,2737.0,0.00547915]
[1739404918981,3.2078,2737.1,2737.0,0.00547915]
[1739404919778,4.71749,2737.1,2737.0,0.00547915]
[1739404920279,3.9869,2737.1,2737.0,0.73609915]
[1739404920877,3.9869,2737.1,2737.0,0.00547915]
[1739404921774,3.9869,2737.1,2737.0,0.73609915]
[1739404921972,3.9869,2737.1,2737.0,0.00547915]
[1739404922176,3.9869,2737.1,2737.0,0.73609915]
[1739404922377,3.2078,2737.1,2737.0,0.73609915]
[1739404923581,3.2078,2737.4,2737.0,0.73609915]
[1739404923781,3.2078,2737.4,2737.3,0.73054]
[1739404924879,3.2078,2737.4,2737.1,2.2492]
[1739404924880,3.93834,2737.4,2737.1,0.7835]
[1739404925084,3.93834,2737.4,2737.2,0.73056]
[1739404925085,2.5665,2737.3,2737.2,0.73056]
[1739404926282,2.5665,2737.3,2737.1,0.73058]
[1739404926481,3.3292,2737.3,2737.1,0.73058]
[1739404926989,3.3292,2737.3,2737.1,0.73059]
[1739404927186,4.05975,2737.3,2737.0,0.73608915]
[1739404927481,3.2078,2737.1,2737.0,0.00547915]
[1739404927682,3.2078,2737.1,2737.0,0.73609915]
[1739404927883,3.2078,2737.1,2737.0,0.00547915]
[1739404928384,6.35850977,2737.1,2737.0,0.00547915]
[1739404929081,3.2078,2737.1,2737.0,0.73609915]
[1739404929283,3.2078,2737.5,2737.4,0.73051]
[1739404929487,5.0468,2737.8,2737.7,0.73043]
[1739404930789,3.2078,2737.8,2737.7,0.73043]
[1739404930980,0.7555,2738.0,2737.5,3.2078]
[1739404931177,0.00546813,2738.4,2738.3,0.73027]
[1739404931384,8.13e-06,2738.4,2738.3,0.73027]
[1739404933094,8.13e-06,2738.4,2738.3,1.01998857]
[1739404934087,8.13e-06,2738.4,2738.3,0.73027]
[1739404934494,20.977,2739.2,2738.9,0.73011]
[1739404934495,3.2078,2739.0,2738.9,0.73011]
[1739404935484,3.2078,2739.0,2738.6,3.15070977]
[1739404935692,3.2078,2739.0,2738.9,0.73011]
[1739404938190,3.2078,2739.0,2738.7,0.73562915]
[1739404938489,3.2078,2739.0,2738.9,0.73011]
[1739404939085,3.2078,2739.0,2738.9,3.88081977]
[1739404940391,0.00547915,2739.2,2738.9,3.15070977]
[1739404940588,0.7261,2739.8,2739.1,3.93786]
[1739404940589,0.7705,2739.7,2739.1,3.93786]
[1739404940889,1.837,2739.9,2739.5,1.82489]
[1739404941192,1.837,2739.9,2739.8,0.72987]
[1739404942090,3.2078,2740.2,2739.5,0.8002]
[1739404942287,3.2078,2740.2,2740.1,0.72979]
[1739404945195,0.7571,2740.4,2739.8,3.2078]
[1739404945393,3.2078,2740.5,2740.0,3.94119444]
[1739404945394,5.0438,2740.5,2740.0,3.94119444]
[1739404945592,5.0438,2740.5,2740.4,0.72971]
[1739404946496,3.2078,2740.5,2740.4,0.72971]
[1739404946797,3.2078,2740.5,2740.2,0.00547915]
[1739404947001,3.2078,2740.5,2740.4,0.72971]
[1739404947190,0.72974,2740.3,2740.2,0.00547915]
[1739404947386,0.72974,2740.3,2739.5,1.7739]
[1739404947387,1.82436,2740.3,2739.5,0.9737]
[1739404947597,3.2078,2739.6,2739.5,0.9737]
[1739404948000,3.2078,2739.6,2739.2,0.73001]
[1739404948301,0.7716,2739.5,2739.4,0.72998]
[1739404948500,2.6076,2739.5,2739.4,0.72998]
[1739404948699,2.6076,2739.5,2739.2,0.00547915]
[1739404948894,3.2078,2739.6,2739.2,0.00547915]
[1739404949203,0.00547915,2739.7,2739.6,0.72993]
[1739404952194,0.00547915,2739.7,2739.2,4.93947915]
[1739404952400,3.2078,2739.6,2739.4,0.72998]
[1739404952595,0.8007,2739.5,2739.4,0.72998]
[1739404953299,0.8007,2739.5,2739.2,0.00547915]
[1739404953498,0.8007,2739.5,2739.2,0.73550915]
[1739404953797,3.2078,2739.3,2739.2,0.97917915]
[1739404954000,5.77281,2739.3,2739.2,0.97917915]
[1739404954193,3.93781,2739.3,2739.1,0.2067]
[1739404954397,1.835,2739.2,2739.1,0.2067]
[1739404954899,7.835,2739.2,2739.1,0.2067]
[1739404955099,0.73019,2738.6,2737.6,7.90339444]
[1739404955400,0.73019,2738.6,2737.9,0.73037]
[1739404955401,0.73022,2738.5,2737.9,0.73037]
[1739404955604,3.2078,2738.2,2737.9,0.73037]
[1739404955906,1.835,2738.1,2737.6,3.2078]
[1739404956106,1.835,2738.1,2738.0,0.73035]
[1739404956500,1.84047915,2738.1,2738.0,0.73035]
[1739404956801,1.84047915,2738.1,2737.8,0.00547915]
[1739404957003,1.84047915,2738.1,2737.8,0.73588915]
[1739404957205,1.84047915,2738.1,2737.8,0.00547915]
[1739404957402,3.2078,2737.9,2737.8,0.00547915]
[1739404957901,9.2078,2737.9,2736.7,4.66909444]
[1739404958095,3.2078,2737.3,2736.8,0.73067]
[1739404958295,3.2078,2737.0,2736.2,3.9357]
[1739404958503,3.2078,2737.0,2735.6,0.28467297]
[1739404958504,3.2078,2736.7,2735.9,3.2078]
[1739404958701,3.2078,2736.7,2735.6,0.7407]
[1739404958702,3.2078,2736.4,2735.6,0.7407]
[1739404958905,1.835,2736.3,2736.0,0.73087]
[1739404959205,5.78167359,2736.3,2735.7,0.00547915]
[1739404959396,2.4976,2735.8,2735.7,0.00547915]
[1739404959599,0.00547915,2736.3,2735.7,0.00547915]
[1739404959805,3.2078,2737.0,2736.9,0.73065]
[1739404960204,3.2078,2737.0,2736.4,3.94119444]
[1739404960502,5.0428,2737.0,2736.3,5.6655]
[1739404960706,5.0428,2737.0,2736.8,0.73066]
[1739404961099,0.00547915,2736.9,2736.8,0.73067]
[1739404961300,1.84047915,2736.9,2736.8,0.73067]
[1739404961699,1.84047915,2736.9,2736.7,0.73068]
[1739404961909,1.84047915,2736.9,2736.4,3.94667359]
[1739404962110,1.84047915,2736.9,2736.5,0.73075]
[1739404962308,3.2078,2736.7,2736.4,0.00547915]
[1739404963402,0.8044,2736.6,2736.4,0.00547915]
[1739404964303,1.836,2736.5,2736.4,0.73624915]
[1739404964512,1.836,2736.5,2736.4,0.00547915]
[1739404967313,0.8044,2736.6,2736.4,0.00547915]
[1739404967513,1.836,2736.5,2736.4,0.00547915]
[1739404968615,2.56675,2736.5,2736.4,0.00547915]
[1739404968816,1.836,2736.5,2736.4,0.00547915]
[1739404969518,3.30775,2736.5,2736.4,0.29777915]
[1739404969715,2.577,2736.5,2736.4,0.29777915]
[1739404970512,0.741,2736.5,2736.4,0.29777915]
[1739404970718,3.2078,2736.7,2736.6,0.73073]
[1739404970915,1.836,2736.7,2736.6,0.73073]
[1739404971322,0.00547915,2736.9,2736.4,7.44677359]
[1739404971515,0.00547915,2736.9,2736.8,0.73067]
[1739404971516,9.15e-06,2736.9,2736.8,0.73067]
[1739404973013,9.15e-06,2736.9,2736.8,1.49097]
[1739404974022,9.15e-06,2736.9,2736.8,0.73067]
[1739404977926,9.15e-06,2736.9,2736.8,5.66467]
[1739404978621,3.2078,2738.5,2737.8,0.73041]
[1739404978824,3.2078,2738.5,2737.6,3.2078]
[1739404979122,1.835,2738.4,2738.3,0.73027]
[1739404979327,1.835,2738.4,2737.7,1.4538]
[1739404979626,1.835,2738.4,2738.3,0.73027]
[1739404979824,19.142,2738.7,2737.9,7.51370405]
[1739404980025,9.15e-06,2738.6,2738.5,0.73022]
[1739404980528,9.15e-06,2738.6,2738.5,3.93802]
[1739404982839,9.15e-06,2738.6,2738.1,3.2078]
[1739404983127,9.15e-06,2738.6,2738.5,0.73022]
[1739404987232,1.83400915,2738.6,2738.1,11.1378]
[1739404987429,5.04180915,2738.6,2738.5,0.73022]
[1739404988030,9.15e-06,2738.6,2738.5,0.73022]
[1739404988235,9.15e-06,2738.6,2738.5,2.25292]
[1739404988433,9.15e-06,2738.6,2738.5,2.95772]
[1739404988836,9.15e-06,2738.6,2738.5,2.99272]
[1739404989933,9.15e-06,2738.6,2738.5,8.99272]
[1739404990539,9.15e-06,2738.6,2738.5,2.99272]
[1739404990832,9.15e-06,2738.6,2738.5,2.28792]
[1739404992537,3.2078,2739.2,2738.5,2.28792]
[1739404992538,3.0032099,2739.2,2739.1,0.73006]
[1739404993737,0.73,2739.4,2739.1,0.73006]
[1739404993937,0.73,2739.4,2738.5,1.5577]
[1739404993938,3.2078,2739.2,2738.5,0.035]
[1739404994137,3.2078,2738.9,2738.5,0.035]
[1739404994338,3.2078,2738.6,2738.5,0.035]
[1739404994641,5.0408,2738.6,2738.5,0.035]
[1739404995734,5.0408,2738.6,2738.5,0.76522]
[1739404996342,5.0408,2738.6,2738.5,0.035]
[1739404997636,5.0408,2738.6,2738.5,0.76522]
[1739404998038,5.0408,2738.6,2738.5,0.035]
[1739404998340,11.0408,2738.6,2737.9,0.73036]
[1739404998638,3.93815,2738.1,2737.8,0.00547915]
[1739404998835,2.5796,2738.0,2737.8,0.00547915]
[1739404999241,0.7141,2737.9,2737.8,0.00547915]
[1739405001139,0.7141,2737.9,2737.8,0.73588915]
[1739405002449,0.7141,2737.9,2737.8,0.00547915]
[1739405002946,1.44448,2737.9,2737.8,0.00547915]
[1739405003147,0.7141,2737.9,2737.8,0.00547915]
[1739405003342,0.7141,2737.9,2737.8,0.73588915]
[1739405003540,3.3328,2738.0,2737.9,0.73038]
[1739405003845,3.3328,2738.0,2737.8,0.00547915]
[1739405004340,3.3328,2738.0,2737.9,0.73038]
[1739405004740,3.3328,2738.0,2737.8,0.29767915]
[1739405005644,3.3328,2738.0,2737.9,0.73038]
[1739405005947,2.5796,2738.0,2737.9,0.73038]
[1739405006340,1.833,2738.3,2737.8,0.29767915]
[1739405006547,1.833,2738.3,2738.2,0.7303]
[1739405007155,0.7097,2738.4,2738.3,0.73027]
[1739405007338,5.7505,2738.4,2737.9,40.8]
[1739405007644,3.2078,2738.0,2737.8,0.29767915]
[1739405007948,2.5487,2737.9,2737.8,0.29767915]
[1739405008139,2.5487,2737.9,2737.8,0.00547915]
[1739405008335,2.5487,2737.9,2737.8,0.73588915]
[1739405009151,2.5487,2737.9,2737.8,0.00547915]
[1739405009649,3.27908,2737.9,2737.8,0.00547915]
[1739405009850,0.73048,2737.6,2737.2,40.8]
[1739405010150,3.2078,2737.4,2737.3,0.73054]
[1739405010342,5.0408,2737.4,2737.3,0.73054]
[1739405011144,1.833,2737.4,2737.3,0.73054]
[1739405011349,1.833,2737.5,2737.4,0.73051]
[1739405011744,0.00547915,2737.6,2737.4,0.73051]
[1739405012050,9.15e-06,2737.6,2737.5,0.73049]
[1739405014250,1.83300915,2737.6,2737.3,0.73053]
[1739405014445,3.2078,2737.4,2737.1,0.00547915]
[1739405014752,3.2078,2737.4,2737.2,0.73056]
[1739405014949,3.2078,2737.4,2737.1,0.73605915]
[1739405015252,3.2078,2737.4,2737.1,0.00547915]
[1739405015441,3.93833,2737.4,2737.1,0.00547915]
[1739405015644,3.93833,2737.4,2737.1,0.73606915]
[1739405015645,3.2078,2737.4,2737.1,0.73606915]
[1739405015844,3.93833,2737.4,2737.1,0.00547915]
[1739405016245,3.2078,2737.4,2737.1,0.00547915]
[1739405016853,0.73057,2737.2,2737.1,0.00547915]
[1739405017555,3.66505611,2737.4,2737.1,0.00547915]
[1739405017852,0.73054,2737.3,2737.1,0.00547915]
[1739405018249,1.82649,2737.1,2735.7,0.7248]
[1739405018450,1.82649,2737.1,2735.7,0.7619]
[1739405018451,3.2078,2735.9,2735.7,0.7619]
[1739405018652,3.2078,2735.9,2735.3,1.5264]
[1739405018653,5.0408,2735.9,2735.3,1.5264]
[1739405018952,3.2078,2735.6,2735.4,40.8]
[1739405019846,0.73102,2735.5,2735.4,40.8]
[1739405020045,3.2078,2735.6,2735.4,40.8]
[1739405020242,3.2078,2735.6,2735.2,0.00547915]
[1739405020455,3.2078,2735.3,2735.2,0.00547915]
[1739405020646,5.0408,2735.3,2735.2,0.00547915]
[1739405021247,5.0408,2735.3,2734.7,0.763]
[1739405021443,5.77189,2735.3,2734.7,0.763]
[1739405021647,5.77189,2735.3,2734.7,1.49422]
[1739405021648,5.0408,2735.3,2734.7,1.49422]
[1739405021849,3.2078,2735.0,2734.4,0.73132]
[1739405022155,3.93896,2735.0,2734.3,2.22433]
[1739405022449,3.2078,2735.0,2734.4,0.73678915]
[1739405022654,3.2078,2735.0,2734.4,0.73676915]
[1739405022959,3.2078,2735.0,2734.4,0.73678915]
[1739405023657,3.2078,2735.0,2734.4,0.00547915]
[1739405023859,3.2078,2735.0,2734.5,0.73127]
[1739405024064,3.2078,2735.0,2734.5,41.53127]
[1739405024255,3.2078,2735.0,2734.5,40.8]
[1739405024453,3.2078,2734.7,2734.5,40.8]
[1739405024658,1.833,2734.6,2734.5,40.8]
[1739405025255,1.833,2734.6,2734.5,41.53129]
[1739405025763,1.833,2734.6,2734.5,40.8]
[1739405026455,3.2078,2734.7,2734.5,40.8]
[1739405026654,3.2078,2734.7,2734.6,0.73126]
[1739405026861,1.833,2734.6,2734.4,0.00547915]
[1739405027064,1.833,2734.6,2734.4,9.15e-06]
[1739405027065,0.73129,2734.5,2734.4,9.15e-06]
[1739405027365,1.4288,2734.5,2733.6,40.8]
[1739405027556,3.2078,2734.3,2733.6,40.8]
[1739405027763,1.834,2734.2,2733.6,40.8]
[1739405027953,3.2078,2734.0,2733.9,0.73145]
[1739405028149,3.2078,2734.1,2733.9,0.73144]
[1739405028354,3.2078,2734.1,2734.0,0.73142]
[1739405028663,5.0418,2734.1,2733.7,0.00547915]
[1739405028959,1.834,2734.1,2733.7,0.00547915]
[1739405029257,1.834,2734.1,2734.0,0.73142]
[1739405029462,1.834,2734.1,2733.9,0.73144]
[1739405029653,1.834,2734.1,2733.9,0.73145]
[1739405030060,1.834,2734.1,2733.8,0.73146]
[1739405030560,1.834,2734.1,2734.0,0.73142]
[1739405031263,0.00547915,2734.2,2734.0,40.8]
[1739405031461,0.00547915,2734.2,2734.1,2.2016]
[1739405032564,0.00547915,2734.2,2734.1,1.4702]
[1739405032864,0.00547915,2734.2,2734.1,2.2016]
[1739405033958,0.00547915,2734.2,2734.1,1.4702]
[1739405034158,3.21327915,2734.2,2734.1,0.71]
[1739405035066,3.21327915,2734.2,2734.0,40.8]
[1739405035564,0.00547915,2734.2,2734.1,0.7314]
[1739405036167,0.00547915,2734.2,2734.0,41.53141]
[1739405036460,0.00547915,2734.2,2734.0,40.8]
[1739405036767,0.00547915,2734.2,2734.1,0.7314]
[1739405039068,0.73121,2734.8,2734.1,6.0]
[1739405039069,3.2078,2734.8,2734.1,6.0]
[1739405039274,3.2078,2734.8,2734.0,44.7463196]
[1739405039275,3.2078,2734.8,2734.7,0.73124]
[1739405040163,3.2078,2734.8,2733.9,0.73143]
[1739405040164,8.9821796,2734.8,2733.9,0.73143]
[1739405040465,3.2078,2734.0,2733.9,0.73145]
[1739405040765,0.73131,2734.5,2733.8,0.7261]
[1739405040766,3.2078,2734.5,2733.8,0.7261]
[1739405041067,3.2078,2734.5,2734.2,0.73135]
[1739405041371,3.2078,2734.5,2733.8,0.7261]
[1739405041966,3.2078,2734.5,2734.2,0.73137]
[1739405042466,3.2078,2734.5,2734.4,0.73132]
[1739405042662,3.2078,2734.5,2733.9,40.8]
[1739405042663,3.2078,2734.5,2734.3,0.73132]
[1739405042872,3.2078,2734.5,2734.4,0.73132]
[1739405043460,3.2078,2735.2,2734.9,0.73118]
[1739405043660,3.2078,2735.2,2734.3,3.2078]
[1739405043661,1.83847915,2735.0,2734.3,3.2078]
[1739405043861,3.2078,2734.9,2734.6,0.73126]
[1739405044062,0.73124,2734.7,2734.2,0.73134]
[1739405044269,3.2078,2734.4,2734.1,0.7117]
[1739405044571,5.0408,2734.4,2734.1,0.7117]
[1739405044772,3.2078,2734.4,2734.2,0.73136]